[Event "January 9 Early 2024"]
[Site "https://www.chess.com"]
[Date "2024.01.11"]
[Round "7"]
[White "Bindrich, Falko"]
[Black "Potkin, Vladimir"]
[Result "1-0"]
[Board "132"]
[TimeControl "180+1"]
[WhiteFideId "4676670"]
[BlackFideId "4131061"]
[WhiteElo "2827"]
[BlackElo "2667"]
[WhiteTeam "GER"]
[BlackTeam "RUS"]
[WhiteClock "0:00:17"]
[BlackClock "0:00:10"]

1. d4 {[%clk 0:03:00]}  Nf6 {[%clk 0:02:59]} 2. c4 {[%clk 0:03:00]}  e6 {[%clk 0:02:59]} 3. Nc3 {[%clk 0:03:01]}  Bb4 {[%clk 0:02:58]} 4. Qc2 {[%clk 0:03:01]}  O-O {[%clk 0:02:57]} 5. Nf3 {[%clk 0:03:01]}  c5 {[%clk 0:02:54]} 6. dxc5 {[%clk 0:03:01]}  Na6 {[%clk 0:02:54]} 7. g3 {[%clk 0:03:02]}  Nxc5 {[%clk 0:02:54]} 8. Bg2 {[%clk 0:03:02]}  Nce4 {[%clk 0:02:54]} 9. O-O {[%clk 0:03:03]}  Nxc3 {[%clk 0:02:53]} 10. bxc3 {[%clk 0:03:04]}  Be7 {[%clk 0:02:53]} 11. e4 {[%clk 0:03:04]}  d6 {[%clk 0:02:52]} 12. e5 {[%clk 0:03:05]}  dxe5 {[%clk 0:02:52]} 13. Nxe5 {[%clk 0:03:05]}  Nd7 {[%clk 0:02:52]} 14. Nd3 {[%clk 0:02:57]}  Qc7 {[%clk 0:02:50]} 15. Rb1 {[%clk 0:02:56]}  Qxc4 {[%clk 0:02:44]} 16. Bf4 {[%clk 0:02:56]}  Nc5 {[%clk 0:02:29]} 17. Rfd1 {[%clk 0:02:37]}  Nxd3 {[%clk 0:01:54]} 18. Bf1 {[%clk 0:02:29]}  Bf6 {[%clk 0:01:36]} 19. Bxd3 {[%clk 0:02:21]}  Qxc3 {[%clk 0:01:36]} 20. Bxh7+ {[%clk 0:01:38]}  Kh8 {[%clk 0:01:36]} 21. Qe4 {[%clk 0:01:39]}  g6 {[%clk 0:01:30]} 22. Bxg6 {[%clk 0:01:29]}  fxg6 {[%clk 0:01:31]} 23. Qxg6 {[%clk 0:01:30]}  Bg7 {[%clk 0:01:27]} 24. Rb5 {[%clk 0:01:20]}  Qf6 {[%clk 0:01:16]} 25. Rh5+ {[%clk 0:01:13]}  Kg8 {[%clk 0:01:17]} 26. Qh7+ {[%clk 0:01:03]}  Kf7 {[%clk 0:01:17]} 27. Rc5 {[%clk 0:00:55]}  Re8 {[%clk 0:00:45]} 28. Bg5 {[%clk 0:00:33]}  Qb2 {[%clk 0:00:16]} 29. Rc7+ {[%clk 0:00:28]}  Kf8 {[%clk 0:00:17]} 30. Bh6 {[%clk 0:00:22]}  Re7 {[%clk 0:00:15]} 31. Rxe7 {[%clk 0:00:19]}  Kxe7 {[%clk 0:00:16]} 32. Bxg7 {[%clk 0:00:19]}  Qe2 {[%clk 0:00:14]} 33. Be5+ {[%clk 0:00:17]}  Ke8 {[%clk 0:00:12]} 34. Qg8+ {[%clk 0:00:17]}  Ke7 {[%clk 0:00:10]} 35. Qg7+ {[%clk 0:00:17]} 1-0

[Event "January 9 Early 2024"]
[Site "https://www.chess.com"]
[Date "2024.01.11"]
[Round "7"]
[White "Kraus, Tomas"]
[Black "Bazilius, Augustinas"]
[Result "0-1"]
[Board "134"]
[TimeControl "180+1"]
[WhiteFideId "331708"]
[BlackFideId "12832251"]
[WhiteElo "2343"]
[BlackElo "2521"]
[WhiteTeam "CZE"]
[BlackTeam "LTU"]
[WhiteClock "0:00:07"]
[BlackClock "0:00:44"]

1. e4 {[%clk 0:03:00]}  b6 {[%clk 0:02:57]} 2. d4 {[%clk 0:03:00]}  Bb7 {[%clk 0:02:58]} 3. Nc3 {[%clk 0:03:00]}  g6 {[%clk 0:02:58]} 4. f4 {[%clk 0:03:00]}  Bg7 {[%clk 0:02:58]} 5. Nf3 {[%clk 0:03:00]}  c5 {[%clk 0:02:56]} 6. Be3 {[%clk 0:02:52]}  Nf6 {[%clk 0:02:45]} 7. e5 {[%clk 0:02:29]}  Ng4 {[%clk 0:02:44]} 8. Bg1 {[%clk 0:02:22]}  cxd4 {[%clk 0:02:34]} 9. Nxd4 {[%clk 0:02:16]}  Nh6 {[%clk 0:02:23]} 10. Qd2 {[%clk 0:01:51]}  O-O {[%clk 0:02:06]} 11. O-O-O {[%clk 0:01:48]}  Nc6 {[%clk 0:02:04]} 12. Be2 {[%clk 0:00:58]}  Nxd4 {[%clk 0:02:01]} 13. Bxd4 {[%clk 0:00:58]}  Bxg2 {[%clk 0:02:01]} 14. Rhg1 {[%clk 0:00:57]}  Bc6 {[%clk 0:01:57]} 15. h4 {[%clk 0:00:54]}  Nf5 {[%clk 0:01:44]} 16. h5 {[%clk 0:00:53]}  d6 {[%clk 0:01:33]} 17. hxg6 {[%clk 0:00:44]}  hxg6 {[%clk 0:01:34]} 18. Bg4 {[%clk 0:00:25]}  dxe5 {[%clk 0:01:01]} 19. Bxe5 {[%clk 0:00:20]}  Qxd2+ {[%clk 0:01:01]} 20. Rxd2 {[%clk 0:00:20]}  Ne3 {[%clk 0:01:02]} 21. Bxg7 {[%clk 0:00:12]}  Kxg7 {[%clk 0:00:56]} 22. f5 {[%clk 0:00:12]}  Nxg4 {[%clk 0:00:55]} 23. Rxg4 {[%clk 0:00:11]}  Rh8 {[%clk 0:00:54]} 24. fxg6 {[%clk 0:00:10]}  fxg6 {[%clk 0:00:55]} 25. Re2 {[%clk 0:00:07]}  Bf3 {[%clk 0:00:49]} 26. Rxe7+ {[%clk 0:00:07]}  Kf6 {[%clk 0:00:49]} 27. Rf4+ {[%clk 0:00:04]}  Kxe7 {[%clk 0:00:49]} 28. Rxf3 {[%clk 0:00:05]}  Rh1+ {[%clk 0:00:46]} 29. Nd1 {[%clk 0:00:05]}  Rd8 {[%clk 0:00:47]} 30. Re3+ {[%clk 0:00:03]}  Kf6 {[%clk 0:00:45]} 31. Rf3+ {[%clk 0:00:04]}  Ke5 {[%clk 0:00:45]} 32. Rd3 {[%clk 0:00:05]}  Rxd3 {[%clk 0:00:44]} 33. cxd3 {[%clk 0:00:06]}  g5 {[%clk 0:00:44]} 34. Kd2 {[%clk 0:00:05]}  Rxd1+ {[%clk 0:00:42]} 35. Kxd1 {[%clk 0:00:05]}  Kd4 {[%clk 0:00:43]} 36. Kd2 {[%clk 0:00:05]}  g4 {[%clk 0:00:43]} 37. b4 {[%clk 0:00:05]}  b5 {[%clk 0:00:43]} 38. Ke2 {[%clk 0:00:03]}  g3 {[%clk 0:00:42]} 39. Kf3 {[%clk 0:00:04]}  Kxd3 {[%clk 0:00:43]} 40. Kxg3 {[%clk 0:00:04]}  Kc3 {[%clk 0:00:43]} 41. Kf3 {[%clk 0:00:04]}  Kxb4 {[%clk 0:00:44]} 42. Ke2 {[%clk 0:00:05]}  Ka3 {[%clk 0:00:44]} 43. Kd2 {[%clk 0:00:06]}  Kxa2 {[%clk 0:00:45]} 44. Kc3 {[%clk 0:00:06]}  a5 {[%clk 0:00:44]} 45. Kc2 {[%clk 0:00:06]}  b4 {[%clk 0:00:44]} 46. Kd3 {[%clk 0:00:07]}  b3 {[%clk 0:00:44]} 0-1

[Event "January 9 Early 2024"]
[Site "https://www.chess.com"]
[Date "2024.01.11"]
[Round "7"]
[White "Makaraci, Tunahan"]
[Black "Harriott, Tyrell"]
[Result "1-0"]
[Board "137"]
[TimeControl "180+1"]
[WhiteFideId "6356559"]
[BlackFideId "2086484"]
[WhiteElo "2555"]
[BlackElo "2361"]
[WhiteTeam "TUR"]
[BlackTeam "USA"]
[WhiteClock "0:00:27"]
[BlackClock "0:00:23"]

1. e4 {[%clk 0:03:00]}  d5 {[%clk 0:02:58]} 2. exd5 {[%clk 0:03:00]}  Nf6 {[%clk 0:02:57]} 3. c4 {[%clk 0:02:59]}  e6 {[%clk 0:02:57]} 4. d4 {[%clk 0:02:59]}  exd5 {[%clk 0:02:56]} 5. Nc3 {[%clk 0:02:59]}  Bb4 {[%clk 0:02:45]} 6. Bd3 {[%clk 0:02:46]}  O-O {[%clk 0:02:43]} 7. Ne2 {[%clk 0:02:45]}  Re8 {[%clk 0:02:41]} 8. O-O {[%clk 0:02:45]}  Nc6 {[%clk 0:02:41]} 9. Bg5 {[%clk 0:02:42]}  Be6 {[%clk 0:02:34]} 10. Bxf6 {[%clk 0:02:38]}  gxf6 {[%clk 0:02:16]} 11. Nf4 {[%clk 0:02:32]}  Bxc3 {[%clk 0:02:11]} 12. bxc3 {[%clk 0:02:28]}  Ne7 {[%clk 0:02:00]} 13. Nxe6 {[%clk 0:01:44]}  fxe6 {[%clk 0:01:58]} 14. Qg4+ {[%clk 0:01:44]}  Kf7 {[%clk 0:01:49]} 15. Qh5+ {[%clk 0:01:43]}  Kf8 {[%clk 0:01:33]} 16. Qh6+ {[%clk 0:01:40]}  Kf7 {[%clk 0:01:29]} 17. Qxh7+ {[%clk 0:01:38]}  Kf8 {[%clk 0:01:30]} 18. Rae1 {[%clk 0:01:33]}  Ng8 {[%clk 0:01:25]} 19. cxd5 {[%clk 0:01:21]}  Qxd5 {[%clk 0:01:21]} 20. Re4 {[%clk 0:01:12]}  Re7 {[%clk 0:01:17]} 21. Qh8 {[%clk 0:01:12]}  Rg7 {[%clk 0:01:16]} 22. g3 {[%clk 0:01:02]}  b5 {[%clk 0:01:03]} 23. Rf4 {[%clk 0:00:58]}  Kf7 {[%clk 0:00:58]} 24. Be4 {[%clk 0:00:42]}  Qg5 {[%clk 0:00:57]} 25. Bxa8 {[%clk 0:00:38]}  Qxf4 {[%clk 0:00:57]} 26. Qxg7+ {[%clk 0:00:38]}  Kxg7 {[%clk 0:00:56]} 27. gxf4 {[%clk 0:00:39]}  Ne7 {[%clk 0:00:55]} 28. Rb1 {[%clk 0:00:36]}  c6 {[%clk 0:00:52]} 29. a4 {[%clk 0:00:35]}  a6 {[%clk 0:00:52]} 30. axb5 {[%clk 0:00:35]}  axb5 {[%clk 0:00:53]} 31. Bxc6 {[%clk 0:00:30]}  Nxc6 {[%clk 0:00:53]} 32. Rxb5 {[%clk 0:00:30]}  Kg6 {[%clk 0:00:52]} 33. Kf1 {[%clk 0:00:30]}  Nd8 {[%clk 0:00:51]} 34. Ke2 {[%clk 0:00:30]}  Nf7 {[%clk 0:00:49]} 35. Kd3 {[%clk 0:00:30]}  Nh6 {[%clk 0:00:44]} 36. c4 {[%clk 0:00:28]}  Nf7 {[%clk 0:00:43]} 37. c5 {[%clk 0:00:27]}  Nd6 {[%clk 0:00:44]} 38. cxd6 {[%clk 0:00:27]}  Kf7 {[%clk 0:00:31]} 39. Rb7+ {[%clk 0:00:25]}  Ke8 {[%clk 0:00:31]} 40. h4 {[%clk 0:00:25]}  e5 {[%clk 0:00:25]} 41. dxe5 {[%clk 0:00:25]}  fxe5 {[%clk 0:00:26]} 42. fxe5 {[%clk 0:00:26]}  Kd8 {[%clk 0:00:25]} 43. e6 {[%clk 0:00:26]}  Kc8 {[%clk 0:00:24]} 44. Rh7 {[%clk 0:00:26]}  Kb8 {[%clk 0:00:23]} 45. Rg7 {[%clk 0:00:25]}  Kc8 {[%clk 0:00:23]} 46. h5 {[%clk 0:00:26]}  Kb8 {[%clk 0:00:23]} 47. h6 {[%clk 0:00:27]}  Kc8 {[%clk 0:00:23]} 48. h7 {[%clk 0:00:27]} 1-0

[Event "January 9 Early 2024"]
[Site "https://www.chess.com"]
[Date "2024.01.11"]
[Round "7"]
[White "Dubnevych, Maksym"]
[Black "Hnatyshyn, Anastasiia"]
[Result "1-0"]
[Board "138"]
[TimeControl "180+1"]
[WhiteFideId "14184001"]
[BlackFideId "14198339"]
[WhiteElo "2517"]
[BlackElo "2270"]
[WhiteTeam "UKR"]
[BlackTeam "UKR"]
[WhiteClock "0:00:21"]
[BlackClock "0:00:03"]

1. d4 {[%clk 0:01:48]}  d5 {[%clk 0:02:56]} 2. Nf3 {[%clk 0:01:47]}  Nf6 {[%clk 0:02:55]} 3. g3 {[%clk 0:01:46]}  e6 {[%clk 0:02:55]} 4. Bg2 {[%clk 0:01:46]}  Be7 {[%clk 0:02:53]} 5. O-O {[%clk 0:01:47]}  O-O {[%clk 0:02:53]} 6. c4 {[%clk 0:01:45]}  dxc4 {[%clk 0:02:54]} 7. Qc2 {[%clk 0:01:43]}  a6 {[%clk 0:02:53]} 8. a4 {[%clk 0:01:41]}  Bd7 {[%clk 0:02:54]} 9. Qxc4 {[%clk 0:01:40]}  Bc6 {[%clk 0:02:54]} 10. Nc3 {[%clk 0:01:39]}  Nbd7 {[%clk 0:02:49]} 11. a5 {[%clk 0:01:36]}  Rc8 {[%clk 0:02:35]} 12. Bg5 {[%clk 0:01:31]}  h6 {[%clk 0:02:33]} 13. Bf4 {[%clk 0:01:24]}  Nd5 {[%clk 0:02:18]} 14. Nxd5 {[%clk 0:01:21]}  Bxd5 {[%clk 0:02:18]} 15. Qd3 {[%clk 0:01:21]}  Nf6 {[%clk 0:02:18]} 16. Rfe1 {[%clk 0:01:10]}  c5 {[%clk 0:02:08]} 17. e4 {[%clk 0:01:08]}  Bc6 {[%clk 0:02:08]} 18. Rad1 {[%clk 0:01:04]}  Qxa5 {[%clk 0:02:02]} 19. d5 {[%clk 0:01:01]}  exd5 {[%clk 0:01:52]} 20. exd5 {[%clk 0:01:02]}  Nxd5 {[%clk 0:01:52]} 21. Bd2 {[%clk 0:01:00]}  Qc7 {[%clk 0:01:49]} 22. Ne5 {[%clk 0:00:59]}  Nb4 {[%clk 0:01:29]} 23. Bxb4 {[%clk 0:00:58]}  Bxg2 {[%clk 0:01:27]} 24. Bc3 {[%clk 0:00:36]}  Bh3 {[%clk 0:01:18]} 25. g4 {[%clk 0:00:21]}  Bxg4 {[%clk 0:00:27]} 26. Nxg4 {[%clk 0:00:22]}  Bg5 {[%clk 0:00:23]} 27. Be5 {[%clk 0:00:19]}  Qc6 {[%clk 0:00:22]} 28. Qg3 {[%clk 0:00:19]}  f5 {[%clk 0:00:15]} 29. Rd6 {[%clk 0:00:18]}  Qa4 {[%clk 0:00:06]} 30. Nxh6+ {[%clk 0:00:18]}  gxh6 {[%clk 0:00:03]} 31. Rxh6 {[%clk 0:00:19]}  Qg4 {[%clk 0:00:02]} 32. Rg6+ {[%clk 0:00:20]}  Kf7 {[%clk 0:00:02]} 33. Rxg5 {[%clk 0:00:20]}  Qxg3+ {[%clk 0:00:02]} 34. hxg3 {[%clk 0:00:21]}  Rg8 {[%clk 0:00:03]} 35. Rxf5+ {[%clk 0:00:21]} 1-0

[Event "January 9 Early 2024"]
[Site "https://www.chess.com"]
[Date "2024.01.11"]
[Round "7"]
[White "Krzyzanowski, Marcin"]
[Black "Kantans, Toms"]
[Result "0-1"]
[Board "140"]
[TimeControl "180+1"]
[WhiteFideId "1132199"]
[BlackFideId "11602945"]
[WhiteElo "2777"]
[BlackElo "2651"]
[WhiteTeam "POL"]
[BlackTeam "LAT"]
[WhiteClock "0:00:01"]
[BlackClock "0:00:14"]

1. e4 {[%clk 0:03:00]}  c5 {[%clk 0:02:59]} 2. Nf3 {[%clk 0:03:00]}  Nf6 {[%clk 0:02:59]} 3. e5 {[%clk 0:02:57]}  Nd5 {[%clk 0:02:59]} 4. Nc3 {[%clk 0:02:57]}  e6 {[%clk 0:03:00]} 5. Nxd5 {[%clk 0:02:53]}  exd5 {[%clk 0:03:00]} 6. d4 {[%clk 0:02:52]}  Nc6 {[%clk 0:03:01]} 7. c3 {[%clk 0:02:50]}  d6 {[%clk 0:03:01]} 8. exd6 {[%clk 0:02:50]}  Bxd6 {[%clk 0:03:02]} 9. Bb5 {[%clk 0:02:45]}  O-O {[%clk 0:03:01]} 10. O-O {[%clk 0:02:44]}  h6 {[%clk 0:02:59]} 11. dxc5 {[%clk 0:02:40]}  Bxc5 {[%clk 0:03:00]} 12. Bf4 {[%clk 0:02:39]}  Be6 {[%clk 0:02:56]} 13. h3 {[%clk 0:02:36]}  Qf6 {[%clk 0:02:54]} 14. Bg3 {[%clk 0:02:28]}  Rfd8 {[%clk 0:02:52]} 15. Bxc6 {[%clk 0:02:01]}  bxc6 {[%clk 0:02:52]} 16. Re1 {[%clk 0:02:02]}  Bb6 {[%clk 0:02:44]} 17. a4 {[%clk 0:01:57]}  a5 {[%clk 0:02:41]} 18. Nd4 {[%clk 0:01:55]}  Bd7 {[%clk 0:02:31]} 19. Qd3 {[%clk 0:01:35]}  c5 {[%clk 0:02:11]} 20. Nb5 {[%clk 0:01:35]}  Bf5 {[%clk 0:02:10]} 21. Qf3 {[%clk 0:01:33]}  d4 {[%clk 0:01:50]} 22. cxd4 {[%clk 0:00:55]}  cxd4 {[%clk 0:01:50]} 23. Bc7 {[%clk 0:00:55]}  Bxc7 {[%clk 0:01:16]} 24. Nxc7 {[%clk 0:00:56]}  Ra7 {[%clk 0:01:10]} 25. Nd5 {[%clk 0:00:54]}  Qg5 {[%clk 0:00:31]} 26. h4 {[%clk 0:00:54]}  Bg4 {[%clk 0:00:25]} 27. hxg5 {[%clk 0:00:10]}  Bxf3 {[%clk 0:00:25]} 28. Nb6 {[%clk 0:00:03]}  Bg4 {[%clk 0:00:19]} 29. gxh6 {[%clk 0:00:03]}  gxh6 {[%clk 0:00:19]} 30. f3 {[%clk 0:00:02]}  Be6 {[%clk 0:00:19]} 31. Re5 {[%clk 0:00:01]}  Rd6 {[%clk 0:00:16]} 32. Rb5 {[%clk 0:00:01]}  d3 {[%clk 0:00:16]} 33. Rd1 {[%clk 0:00:01]}  Rc7 {[%clk 0:00:14]} 0-1

[Event "January 9 Early 2024"]
[Site "https://www.chess.com"]
[Date "2024.01.11"]
[Round "7"]
[White "Reprintsev, Alexander"]
[Black "Kostiukov, Alexandr"]
[Result "1-0"]
[Board "143"]
[TimeControl "180+1"]
[WhiteFideId "14100541"]
[BlackFideId "14108100"]
[WhiteElo "2453"]
[BlackElo "2296"]
[WhiteTeam "UKR"]
[BlackTeam "UKR"]
[WhiteClock "0:00:37"]
[BlackClock "0:00:02"]

1. e4 {[%clk 0:03:00]}  c5 {[%clk 0:02:52]} 2. b3 {[%clk 0:03:00]}  g6 {[%clk 0:02:42]} 3. Bb2 {[%clk 0:03:00]}  Nf6 {[%clk 0:02:43]} 4. e5 {[%clk 0:03:00]}  Nd5 {[%clk 0:02:43]} 5. Nc3 {[%clk 0:03:00]}  Nxc3 {[%clk 0:02:38]} 6. Bxc3 {[%clk 0:03:00]}  Bg7 {[%clk 0:02:39]} 7. h4 {[%clk 0:03:00]}  h5 {[%clk 0:02:38]} 8. Nf3 {[%clk 0:02:55]}  Nc6 {[%clk 0:02:37]} 9. Bb5 {[%clk 0:02:52]}  O-O {[%clk 0:02:30]} 10. Qe2 {[%clk 0:02:51]}  d5 {[%clk 0:02:26]} 11. exd6 {[%clk 0:02:50]}  Qxd6 {[%clk 0:02:13]} 12. Bxg7 {[%clk 0:02:48]}  Kxg7 {[%clk 0:02:14]} 13. Bxc6 {[%clk 0:02:37]}  Qxc6 {[%clk 0:02:10]} 14. Qe5+ {[%clk 0:02:04]}  Qf6 {[%clk 0:01:51]} 15. Qxf6+ {[%clk 0:01:30]}  exf6 {[%clk 0:01:52]} 16. O-O {[%clk 0:01:30]}  Bf5 {[%clk 0:01:46]} 17. d3 {[%clk 0:01:23]}  b5 {[%clk 0:01:42]} 18. Rfe1 {[%clk 0:01:17]}  Rfd8 {[%clk 0:01:24]} 19. Rad1 {[%clk 0:01:11]}  Kf8 {[%clk 0:01:20]} 20. Nd2 {[%clk 0:01:08]}  Rd7 {[%clk 0:01:04]} 21. Ne4 {[%clk 0:01:07]}  Bxe4 {[%clk 0:01:00]} 22. Rxe4 {[%clk 0:01:07]}  Rc8 {[%clk 0:00:52]} 23. Kf1 {[%clk 0:00:58]}  Rcc7 {[%clk 0:00:52]} 24. Ke2 {[%clk 0:00:56]}  Rd4 {[%clk 0:00:52]} 25. f3 {[%clk 0:00:52]}  f5 {[%clk 0:00:44]} 26. Rxd4 {[%clk 0:00:50]}  cxd4 {[%clk 0:00:45]} 27. Kd2 {[%clk 0:00:50]}  b4 {[%clk 0:00:28]} 28. a3 {[%clk 0:00:50]}  a5 {[%clk 0:00:14]} 29. axb4 {[%clk 0:00:49]}  axb4 {[%clk 0:00:15]} 30. Ra1 {[%clk 0:00:49]}  Rb7 {[%clk 0:00:13]} 31. Ra6 {[%clk 0:00:47]}  Ke7 {[%clk 0:00:12]} 32. Rc6 {[%clk 0:00:47]}  Kd7 {[%clk 0:00:11]} 33. Rc4 {[%clk 0:00:46]}  Ke6 {[%clk 0:00:11]} 34. Rxd4 {[%clk 0:00:47]}  Ke5 {[%clk 0:00:11]} 35. Rc4 {[%clk 0:00:45]}  f6 {[%clk 0:00:11]} 36. f4+ {[%clk 0:00:45]}  Kd5 {[%clk 0:00:10]} 37. g3 {[%clk 0:00:45]}  Kd6 {[%clk 0:00:08]} 38. d4 {[%clk 0:00:44]}  Kd5 {[%clk 0:00:08]} 39. Kd3 {[%clk 0:00:45]}  Kd6 {[%clk 0:00:09]} 40. Rc8 {[%clk 0:00:41]}  Ke6 {[%clk 0:00:05]} 41. Kc4 {[%clk 0:00:38]}  Kd6 {[%clk 0:00:02]} 42. d5 {[%clk 0:00:37]} 1-0

[Event "January 9 Early 2024"]
[Site "https://www.chess.com"]
[Date "2024.01.11"]
[Round "7"]
[White "Livaic, Leon"]
[Black "Sturt, Raven"]
[Result "0-1"]
[Board "144"]
[TimeControl "180+1"]
[WhiteFideId "14531534"]
[BlackFideId "2007304"]
[WhiteElo "2911"]
[BlackElo "2771"]
[WhiteTeam "CRO"]
[BlackTeam "USA"]
[WhiteClock "0:00:07"]
[BlackClock "0:00:45"]

1. d4 {[%clk 0:03:00]}  f5 {[%clk 0:02:59]} 2. Nc3 {[%clk 0:03:00]}  Nf6 {[%clk 0:03:00]} 3. Bg5 {[%clk 0:03:01]}  d5 {[%clk 0:03:00]} 4. Bxf6 {[%clk 0:03:01]}  exf6 {[%clk 0:03:01]} 5. e3 {[%clk 0:03:02]}  Be6 {[%clk 0:03:01]} 6. Bd3 {[%clk 0:03:02]}  Qd7 {[%clk 0:03:01]} 7. Nge2 {[%clk 0:03:01]}  Bd6 {[%clk 0:03:01]} 8. h4 {[%clk 0:02:52]}  Nc6 {[%clk 0:02:59]} 9. a3 {[%clk 0:02:52]}  Ne7 {[%clk 0:02:55]} 10. Nb5 {[%clk 0:02:49]}  Nc8 {[%clk 0:02:50]} 11. h5 {[%clk 0:02:45]}  c6 {[%clk 0:02:50]} 12. Nxd6+ {[%clk 0:02:44]}  Nxd6 {[%clk 0:02:50]} 13. b3 {[%clk 0:02:33]}  O-O-O {[%clk 0:02:46]} 14. Qc1 {[%clk 0:02:23]}  g5 {[%clk 0:02:45]} 15. c4 {[%clk 0:02:11]}  f4 {[%clk 0:02:43]} 16. c5 {[%clk 0:02:05]}  Bf5 {[%clk 0:02:25]} 17. Qc2 {[%clk 0:01:47]}  Bxd3 {[%clk 0:02:23]} 18. Qxd3 {[%clk 0:01:48]}  Nf5 {[%clk 0:02:23]} 19. exf4 {[%clk 0:01:43]}  g4 {[%clk 0:02:18]} 20. O-O-O {[%clk 0:01:36]}  Rhe8 {[%clk 0:02:17]} 21. Nc3 {[%clk 0:01:34]}  Re7 {[%clk 0:02:14]} 22. Rhe1 {[%clk 0:01:32]}  Rde8 {[%clk 0:02:15]} 23. Rxe7 {[%clk 0:01:29]}  Rxe7 {[%clk 0:02:16]} 24. g3 {[%clk 0:01:23]}  h6 {[%clk 0:02:15]} 25. b4 {[%clk 0:01:23]}  a6 {[%clk 0:02:14]} 26. a4 {[%clk 0:01:18]}  Qe6 {[%clk 0:02:03]} 27. b5 {[%clk 0:01:14]}  axb5 {[%clk 0:02:04]} 28. axb5 {[%clk 0:01:14]}  Kd7 {[%clk 0:01:58]} 29. Rd2 {[%clk 0:00:56]}  Ke8 {[%clk 0:01:17]} 30. Re2 {[%clk 0:00:52]}  Qd7 {[%clk 0:01:17]} 31. Rxe7+ {[%clk 0:00:51]}  Nxe7 {[%clk 0:01:18]} 32. bxc6 {[%clk 0:00:50]}  bxc6 {[%clk 0:01:18]} 33. Qh7 {[%clk 0:00:43]}  Qf5 {[%clk 0:01:11]} 34. Qxf5 {[%clk 0:00:19]}  Nxf5 {[%clk 0:01:11]} 35. Ne2 {[%clk 0:00:20]}  Ng7 {[%clk 0:01:10]} 36. Kd2 {[%clk 0:00:18]}  Nxh5 {[%clk 0:01:10]} 37. Nc1 {[%clk 0:00:14]}  Ng7 {[%clk 0:01:09]} 38. Kd3 {[%clk 0:00:13]}  Kd7 {[%clk 0:01:07]} 39. Nb3 {[%clk 0:00:10]}  h5 {[%clk 0:01:06]} 40. Nd2 {[%clk 0:00:10]}  Ne6 {[%clk 0:01:04]} 41. Ke3 {[%clk 0:00:07]}  Ng7 {[%clk 0:01:04]} 42. Kd3 {[%clk 0:00:06]}  Ke7 {[%clk 0:00:57]} 43. Nb3 {[%clk 0:00:06]}  Nf5 {[%clk 0:00:54]} 44. Na5 {[%clk 0:00:07]}  Kd7 {[%clk 0:00:54]} 45. Nb7 {[%clk 0:00:07]}  h4 {[%clk 0:00:53]} 46. gxh4 {[%clk 0:00:07]}  Nxh4 {[%clk 0:00:54]} 47. Nd6 {[%clk 0:00:07]}  Ke6 {[%clk 0:00:45]} 0-1

[Event "January 9 Early 2024"]
[Site "https://www.chess.com"]
[Date "2024.01.11"]
[Round "7"]
[White "Burmakin, Evgeniy"]
[Black "Gopal, K.N."]
[Result "0-1"]
[Board "148"]
[TimeControl "180+1"]
[WhiteFideId "4163729"]
[BlackFideId "5001447"]
[WhiteElo "2406"]
[BlackElo "2257"]
[WhiteTeam "RUS"]
[BlackTeam "IND"]
[WhiteClock "0:00:05"]
[BlackClock "0:00:16"]

1. e4 {[%clk 0:03:00]}  c5 {[%clk 0:02:49]} 2. Nc3 {[%clk 0:03:00]}  e6 {[%clk 0:02:44]} 3. Nf3 {[%clk 0:02:59]}  d5 {[%clk 0:02:40]} 4. d4 {[%clk 0:02:53]}  dxe4 {[%clk 0:02:34]} 5. Nxe4 {[%clk 0:02:51]}  c4 {[%clk 0:02:34]} 6. Bxc4 {[%clk 0:02:42]}  Nf6 {[%clk 0:02:31]} 7. Nxf6+ {[%clk 0:02:35]}  Qxf6 {[%clk 0:02:15]} 8. Bg5 {[%clk 0:02:28]}  Qf5 {[%clk 0:02:12]} 9. Qd2 {[%clk 0:02:10]}  Nc6 {[%clk 0:02:10]} 10. O-O {[%clk 0:01:43]}  h6 {[%clk 0:02:00]} 11. Be3 {[%clk 0:01:39]}  Be7 {[%clk 0:01:57]} 12. Bd3 {[%clk 0:01:28]}  Qh5 {[%clk 0:01:45]} 13. Rfe1 {[%clk 0:01:22]}  O-O {[%clk 0:01:41]} 14. c3 {[%clk 0:01:22]}  Rd8 {[%clk 0:01:38]} 15. Qe2 {[%clk 0:01:12]}  Qa5 {[%clk 0:01:34]} 16. Bc2 {[%clk 0:01:08]}  e5 {[%clk 0:01:18]} 17. dxe5 {[%clk 0:00:35]}  Nxe5 {[%clk 0:01:13]} 18. Bd4 {[%clk 0:00:30]}  Nxf3+ {[%clk 0:01:03]} 19. Qxf3 {[%clk 0:00:31]}  Bf8 {[%clk 0:00:52]} 20. Re5 {[%clk 0:00:24]}  Qc7 {[%clk 0:00:45]} 21. Rae1 {[%clk 0:00:18]}  Be6 {[%clk 0:00:43]} 22. Rxe6 {[%clk 0:00:14]}  fxe6 {[%clk 0:00:42]} 23. Qe4 {[%clk 0:00:14]}  Qc6 {[%clk 0:00:29]} 24. Qh7+ {[%clk 0:00:12]}  Kf7 {[%clk 0:00:29]} 25. Qg6+ {[%clk 0:00:11]}  Ke7 {[%clk 0:00:26]} 26. Bb3 {[%clk 0:00:10]}  Rd6 {[%clk 0:00:23]} 27. Bxg7 {[%clk 0:00:08]}  Re8 {[%clk 0:00:17]} 28. Bxf8+ {[%clk 0:00:08]}  Rxf8 {[%clk 0:00:17]} 29. Qg7+ {[%clk 0:00:08]}  Rf7 {[%clk 0:00:18]} 30. Qxh6 {[%clk 0:00:08]}  Qc5 {[%clk 0:00:17]} 31. Qh8 {[%clk 0:00:05]}  Qxf2+ {[%clk 0:00:16]} 0-1